Cogmind - Beta 10.1 @@@ ROGUE MODE // 2020.10.25 @ 16:38:48 Player: Nalzok Result: Destroyed by as-82795 with Assembled Focal Cannon Performance ------------- Evolutions (3) 1500 Regions Visited (9) 1800 Robots Destroyed (81) 405 Value Destroyed (1490) 1490 Prototype IDs (35) 700 Alien Tech Used (0) 0 Bonus (2548) 2548 TOTAL SCORE: 8443 Bonus ------- Aligned with FarCom 300 Met Imprinter 300 Destroyed Z-Imprinter 1000 Triggered Deep Caves Wall 500 Exposed GOLEM Chamber 500 Friendly Fire -52 Cogmind --------- Core Integrity 0/700 Matter 5/300 Energy 382/1310 System Corruption 8% Temperature Cool (6) Movement Walking (185) Ox2 Location -6/Deep Caves Parts ------- > --- POWER (1) -------- Fission Core > --- PROPULSION (2) --- Enhanced Flexi-carbon Leg Assembled Alloy Leg > --- UTILITY (6) ------ Assembled Nanovents High-capacity Storage Unit High-capacity Storage Unit Assembled Biocell Array GOLEM Unit > --- WEAPON (4) ------- Assembled Focal Cannon Assembled Focal Cannon AWS/Gauss > --- INVENTORY (20) --- Light Deuterium Engine Enhanced Flexi-carbon Leg Enhanced Flexi-carbon Leg Improved Cooling System Improved Cooling System Kinecellerator Layered Medium Armor Plating Reactive Plating Experimental Thermal Shield Mobile Refinery Mk. CCLXVII Hacking Drone Bay (1/1) GOLEM Unit Zionite Laser-S Heavy Battle Rifle Heavy Battle Rifle Advanced Assault Cannon Advanced Assault Cannon Proton Missile Launcher CR-A16's Pointy Stick Peak State ------------ > --- POWER ------------ Fission Core > --- PROPULSION ------- Enhanced Flexi-carbon Leg Assembled Alloy Leg > --- UTILITY ---------- Assembled Nanovents High-capacity Storage Unit High-capacity Storage Unit Assembled Biocell Array GOLEM Unit > --- WEAPON ----------- Assembled Focal Cannon Assembled Focal Cannon AWS/Gauss > --- INVENTORY -------- Light Deuterium Engine Enhanced Flexi-carbon Leg Enhanced Flexi-carbon Leg Improved Cooling System Improved Cooling System Kinecellerator Layered Medium Armor Plating Reactive Plating Experimental Thermal Shield Mobile Refinery Mk. CCLXVII Hacking Drone Bay GOLEM Unit Zionite Laser-S Heavy Battle Rifle Heavy Battle Rifle Advanced Assault Cannon Advanced Assault Cannon Proton Missile Launcher CR-A16's Pointy Stick [Rating: 100] Favorites ----------- Power Deuterium Engine Engine Deuterium Engine Power Core Fission Core Reactor Antimatter Reactor Propulsion Improved Titanium Leg Leg Improved Titanium Leg Utility High-capacity Storage Unit Device Improved Cooling System Storage High-capacity Storage Unit Processor Visual Processing Unit Hackware System Shield Protection Reactive Plating Weapon Advanced Assault Cannon Energy Gun Phase Gun Energy Cannon Heavy Particle Cannon Ballistic Gun High-powered Shotgun Ballistic Cannon Advanced Assault Cannon Launcher Heavy Missile Launcher Slashing Weapon Chainsword Piercing Weapon CR-A16's Pointy Stick Build | -11 -10 -10 -10 -9 -8 -7 -7 -6 -6 ------- Run | Scr Mat Min Exi Min Mat Fac Low Zio Dee Slots Evolved 6 | . . . . . 4 2 . . . Power . | . . . . . . . . . . Propulsion . | . . . . . . . . . . Utility 4 | . . . . . 2 2 . . . Weapon 2 | . . . . . 2 . . . . Parts Attached 96 | . 4 5 . . 17 23 2 19 26 Power 9 | . . 1 . . 1 . . . 7 Engine 6 | . . 1 . . 1 . . . 4 Core 2 | . . . . . . . . . 2 Reactor 1 | . . . . . . . . . 1 Propulsion 16 | . 1 1 . . 4 2 . 5 3 Treads . | . . . . . . . . . . Leg 16 | . 1 1 . . 4 2 . 5 3 Wheel . | . . . . . . . . . . Hover . | . . . . . . . . . . Flight . | . . . . . . . . . . Utility 26 | . 3 1 . . 5 6 . 6 5 Device 11 | . 2 . . . 2 1 . 4 2 Storage 4 | . 1 . . . . . . 1 2 Processor 1 | . . 1 . . . . . . . Hackware 1 | . . . . . . 1 . . . Protection 9 | . . . . . 3 4 . 1 1 Artifact . | . . . . . . . . . . Weapon 45 | . . 2 . . 7 15 2 8 11 Energy Gun 13 | . . . . . . 8 . 3 2 Energy Cannon 2 | . . . . . 1 . . . 1 Ballistic Gun 17 | . . 1 . . 6 3 . 3 4 Ballistic Cannon 8 | . . 1 . . . 3 1 1 2 Launcher 2 | . . . . . . . 1 . 1 Special Weapon . | . . . . . . . . . . Impact Weapon . | . . . . . . . . . . Slashing Weapon 1 | . . . . . . 1 . . . Piercing Weapon 2 | . . . . . . . . 1 1 Special Melee Weapon . | . . . . . . . . . . Unidentified Prototypes 6 | . . . . . 1 . . 2 3 Parts Lost 18 | . . . . . . 2 . . 16 Power 3 | . . . . . . . . . 3 Propulsion 2 | . . . . . . . . . 2 Utility 6 | . . . . . . 2 . . 4 Weapon 7 | . . . . . . . . . 7 Highest Loss Streak 6 | . . . . . . 1 . . 6 Average Slot Usage (%) 98 | . 95 100 100 100 99 99 100 100 95 Engine 7 | . 14 14 14 14 9 7 7 7 2 Leg 17 | . 28 28 28 28 18 15 15 15 14 Device 10 | . 9 7 . . 8 10 15 9 16 Storage 12 | . 14 14 14 14 9 7 7 13 20 Processor 6 | . . 6 14 14 9 7 7 7 1 Protection 10 | . . . . . 9 18 15 14 3 Energy Gun 10 | . 14 8 . . . 8 15 15 14 Energy Cannon 1 | . . . . . 5 . . . 3 Ballistic Gun 7 | . 14 14 14 14 21 12 . . 1 Ballistic Cannon 10 | . . 5 14 14 9 8 14 14 7 Naked Turns . | . . . . . . . . . . Heaviest Build 122 | 11 40 45 45 45 60 85 85 116 122 Greatest Support 58 | 20 20 27 27 27 34 37 35 40 58 Greatest Overweight (x) 4 | . 1 1 1 1 2 2 2 3 4 Average Overweight (x) 1 | . . 1 1 1 1 1 2 2 2 Largest Inventory Capacity 20 | 6 12 12 12 12 12 12 12 20 20 Average Capacity 15 | 6 6 12 12 12 12 12 12 18 20 Most Carried 20 | 5 8 12 12 12 12 12 12 20 20 Average Carried 14 | 2 4 11 11 12 11 11 12 16 19 Final Capacity 20 | 6 12 12 12 12 12 12 12 20 20 Final Carried 20 | 2 8 12 12 12 12 12 12 20 20 Class Distribution -------------------- 31% | Mutant 23% | Hauler-Mutant 12% | Skirmisher 10% | Hauler-Tank 7% | Tank 5% | Scavenger-Tank 4% | Hauler-Golem 3% | Scavenger-Gunner Dominant Class ---------------- Mutant | -10/Materials Mutant | -10/Mines Mutant | -10/Exiles Mutant | -9/Mines Skirmisher | -8/Materials Mutant | -7/Factory Tank | -7/Lower Caves Hauler-Mutant | -6/Zion Hauler-Tank | -6/Deep Caves Resources | -11 -10 -10 -10 -9 -8 -7 -7 -6 -6 ----------- Run | Scr Mat Min Exi Min Mat Fac Low Zio Dee Matter Collected 2028 | 200 43 161 . . 271 473 29 349 502 Remotely . | . . . . . . . . . . Salvage Created 2102 | . 155 51 . . 311 342 54 . 1189 Parts 67 | . 6 6 . . 19 17 2 . 17 Haulers Intercepted . | . . . . . . . . . . Recyclers Shooed 5 | . 3 . . . . 2 . . . Parts Field Recycled . | . . . . . . . . . . Retrieved Matter . | . . . . . . . . . . Parts Self-Destructed 9 | . . . . . . . 2 7 . Prevented . | . . . . . . . . . . Kills | -11 -10 -10 -10 -9 -8 -7 -7 -6 -6 ------- Run | Scr Mat Min Exi Min Mat Fac Low Zio Dee Combat Hostiles Destroyed 74 | . 1 3 . . 9 5 3 . 53 Melee 5 | . . . . . . 1 . . 4 Guns 23 | . 1 2 . . 5 . 2 . 13 Cannons 18 | . . 1 . . 4 2 . . 11 AOE 26 | . . . . . . . 1 . 25 Classes Destroyed 13 | . 3 2 . . 3 1 . . 4 Worker 1 | . . 1 . . . . . . . Builder 1 | . . . . . 1 . . . . Recycler 2 | . 1 . . . . 1 . . . Watcher 1 | . 1 . . . . . . . . Swarmer 6 | . . 3 . . . . 3 . . Grunt 5 | . 1 . . . 4 . . . . Sentry 6 | . . . . . 4 2 . . . Hunter 1 | . . . . . 1 . . . . Programmer 3 | . . . . . . 3 . . . Z-Light 5 | . . . . . . . . . 5 Assembler 2 | . . . . . . . . . 2 Assembled 42 | . . . . . . . . . 42 Golem 6 | . . . . . . . . . 6 Best Kill Streak 36 | . 2 4 . . 2 1 3 . 36 Combat Bots Only 36 | . 1 3 . . 2 1 3 . 36 Max Kills in Single Turn 12 | . 1 1 . . 2 1 2 . 12 Gunslinging . | . . . . . . . . . . Exploded 10 | . . . . . . . 1 . 10 Melee 1 | . . . . . . 1 . . 1 Uniques/NPCs Destroyed 1 | . . . . . . . . . 1 Z-Imprinter (-6/Deep Caves) Combat | -11 -10 -10 -10 -9 -8 -7 -7 -6 -6 -------- Run | Scr Mat Min Exi Min Mat Fac Low Zio Dee Damage Taken 4977 | . 33 131 . . 521 772 60 . 3460 Core 794 | . 10 32 . . 44 44 . . 664 Absorbed by Shields . | . . . . . . . . . . Core Remaining (%) 91 | 100 . . . 83 92 . . . . Volleys Fired 126 | . 11 9 . . 22 21 2 . 61 Largest 4 | . 2 2 . . 4 4 4 . 4 Hottest 293 | . 70 69 . . 169 213 253 . 293 Shots Fired 443 | . 22 18 . . 88 59 9 1 246 Gun 262 | . 22 9 . . 54 46 3 1 127 Cannon 173 | . . 9 . . 34 13 5 . 112 Launcher 8 | . . . . . . . 1 . 7 Special . | . . . . . . . . . . Kinetic 283 | . 11 18 . . 76 35 5 . 138 Thermal 147 | . 11 . . . 12 19 3 1 101 Explosive 8 | . . . . . . . 1 . 7 Electromagnetic 5 | . . . . . . 5 . . . Robot Hit Streak 12 | . 9 2 . . 12 11 2 . 8 Robot Miss Streak 8 | . 1 8 . . 8 4 1 . 6 Penetration Max 1 | . . . . . . . . . 1 Secondary Targets . | . . . . . . . . . . Autonomous 54 | . . . . . . . . . 54 Shots Hit Robots 287 | . 17 10 . . 57 42 2 . 159 Core Hits 182 | . 5 4 . . 21 15 3 . 134 Critical Hits 10 | . . . . . 2 . . . 8 Critical Kills 2 | . . . . . 1 . . . 1 Critical Parts Destroyed 6 | . . . . . 1 . . . 5 Melee Attacks 42 | . . . . . . 4 . . 38 Impact . | . . . . . . . . . . Slashing 4 | . . . . . . 4 . . . Piercing 38 | . . . . . . . . . 38 Sneak Attacks . | . . . . . . . . . . Combat Hostiles . | . . . . . . . . . . Follow-up Attacks . | . . . . . . . . . . Damage Inflicted 9936 | . 212 151 . . 1197 776 180 . 7420 Guns 3977 | . 212 105 . . 721 606 72 . 2261 Cannons 2632 | . . 46 . . 370 141 . . 2075 Explosions 2397 | . . . . . 106 . 108 . 2183 Melee 880 | . . . . . . . . . 880 Ramming 50 | . . . . . . 29 . . 21 Kinetic 4059 | . 99 151 . . 916 390 . . 2503 Thermal 2538 | . 113 . . . 175 345 72 . 1833 Explosive 2397 | . . . . . 106 . 108 . 2183 Electromagnetic 12 | . . . . . . 12 . . . Impact . | . . . . . . . . . . Slashing . | . . . . . . . . . . Piercing 880 | . . . . . . . . . 880 Highest Corruption 8 | . . . . . 1 5 5 5 8 Average Corruption 4 | . . . . . 1 3 5 5 7 Corruption Purged . | . . . . . . . . . . Effects 47 | . . . . . 4 18 9 2 14 Message Errors 11 | . . . . . 2 5 1 . 3 Matter Fused 8 | . . . . . . 2 1 . 5 Heat Flow Errors 5 | . . . . . . 3 2 . . Energy Discharges 5 | . . . . . 1 1 . 1 2 Data Loss (minor) 6 | . . . . . . 3 2 . 1 Data Loss (major) 2 | . . . . . . 1 1 . . Misfires 5 | . . . . . . 2 2 1 . Targeting Errors 4 | . . . . . 1 1 . . 2 Weapon Failures 1 | . . . . . . . . . 1 Overload Shots . | . . . . . . . . . . Overflow Damage 213 | . . . . . 57 . 22 . 134 Projectiles 92 | . . . . . 14 . . . 78 Explosions 121 | . . . . . 43 . 22 . 56 Melee . | . . . . . . . . . . Knockbacks 8 | . . . . . 1 . . . 7 Impact . | . . . . . . . . . . Kinetic 7 | . . . . . 1 . . . 6 Secondary 1 | . . . . . . . . . 1 Self-Inflicted Damage 164 | . . . . . 58 7 . . 99 Shots 3 | . . . . . 1 . . . 2 Rammed 5 | . . . . . . 3 . . 2 Targets Rammed 12 | . . . . . . 6 . . 6 Kicked 7 | . . . . . . 3 . . 4 Crushed . | . . . . . . . . . . Highest Temperature 302 | . 81 81 . . 102 207 250 4 302 Average Temperature 73 | . 33 41 . . 36 44 103 3 118 Received Heat Transfer 819 | . 18 . . . 225 132 . . 444 Effects 4 | . . . . . . . 2 . 2 Interference 4 | . . . . . . . 2 . 2 Siege Activations . | . . . . . . . . . . Robots Corrupted . | . . . . . . . . . . Combat Hostiles . | . . . . . . . . . . Parts Fried . | . . . . . . . . . . Impact Corruptions . | . . . . . . . . . . Robots Melted 2 | . . . . . . 2 . . . Combat Hostiles 2 | . . . . . . 2 . . . Parts Melted 12 | . . . . . . 4 . . 8 Heat Transferred 3627 | . 333 . . . 259 660 111 . 2264 Parts Sabotaged . | . . . . . . . . . . Parts Stolen . | . . . . . . . . . . Parts Stripped . | . . . . . . . . . . Power Chain Reactions . | . . . . . . . . . . Missiles Intercepted . | . . . . . . . . . . Alert | -11 -10 -10 -10 -9 -8 -7 -7 -6 -6 ------- Run | Scr Mat Min Exi Min Mat Fac Low Zio Dee Peak Influence 178 | . 42 75 . . 178 99 . . . Initial 21 | . . . . . . 21 . . . Average 42 | . 16 12 . . 63 52 . . . Maximum Alert Level . | . . . . . . . . . . Low Security (%) 100 | 100 100 100 . 100 100 100 . . . Level 1 . | . . . . . . . . . . Level 2 . | . . . . . . . . . . Level 3 . | . . . . . . . . . . Level 4 . | . . . . . . . . . . Level 5 . | . . . . . . . . . . High Security . | . . . . . . . . . . Max Security . | . . . . . . . . . . Squads Dispatched 7 | . . 1 . . 2 4 . . . Investigation 2 | . . 1 . . 1 . . . . Extermination 3 | . . . . . . 3 . . . Reinforcement 2 | . . . . . 1 1 . . . Assault . | . . . . . . . . . . Garrison . | . . . . . . . . . . Intercept . | . . . . . . . . . . Construction Impeded . | . . . . . . . . . . Haulers Reinforced . | . . . . . . . . . . Stealth | -11 -10 -10 -10 -9 -8 -7 -7 -6 -6 --------- Run | Scr Mat Min Exi Min Mat Fac Low Zio Dee Distress Signals 2 | . 1 . . . 1 . . . . Communications Jammed . | . . . . . . . . . . Distress Signals . | . . . . . . . . . . Times Spotted 108 | . 2 3 . . 12 10 3 . 78 Peak Tracking Total 29 | . 1 2 . . 3 2 3 . 29 Tactical Retreats 12 | . . . . . 1 . . . 11 Traps | -11 -10 -10 -10 -9 -8 -7 -7 -6 -6 ------- Run | Scr Mat Min Exi Min Mat Fac Low Zio Dee Traps Triggered 4 | . . 1 . . . 3 . . . Indirectly . | . . . . . . . . . . Trap Hack Attempts . | . . . . . . . . . . Triggered . | . . . . . . . . . . Disarmed . | . . . . . . . . . . Reprogrammed . | . . . . . . . . . . Reused . | . . . . . . . . . . Traps Extracted . | . . . . . . . . . . Installed . | . . . . . . . . . . Triggered . | . . . . . . . . . . Machines | -11 -10 -10 -10 -9 -8 -7 -7 -6 -6 ---------- Run | Scr Mat Min Exi Min Mat Fac Low Zio Dee Machines Disabled 4 | . . . . . 2 . . . 2 Max in Single Turn 1 | . . . . . 1 . . . 1 Machines Sabotaged . | . . . . . . . . . . Garrisons Compromised . | . . . . . . . . . . Overloaded Fab Kills . | . . . . . . . . . . Fab Network Shutdowns . | . . . . . . . . . . Hacking | -11 -10 -10 -10 -9 -8 -7 -7 -6 -6 --------- Run | Scr Mat Min Exi Min Mat Fac Low Zio Dee Machines Accessed 17 | . 3 2 2 . 2 7 1 . . Terminals 8 | . 3 . . . 2 3 . . . Fabricators 2 | . . . . . . 2 . . . Repair Stations 1 | . . . . . . 1 . . . Recycling Units . | . . . . . . . . . . Scanalyzers 1 | . . . . . . 1 . . . Garrison Access . | . . . . . . . . . . Total Hacks 46 | . 11 2 2 . 9 21 1 . . Successful 24 | . 5 2 2 . 5 9 1 . . Failed 22 | . 6 . . . 4 12 . . . Catastrophic 4 | . 1 . . . 1 2 . . . Database Lockouts . | . . . . . . . . . . Manual 37 | . 11 . 1 . 8 10 . 7 . Terminals 32 | . 11 . . . 9 12 . . . Fabricators 4 | . . . . . . 4 . . . Repair Stations 1 | . . . . . . 1 . . . Recycling Units . | . . . . . . . . . . Scanalyzers 4 | . . . . . . 4 . . . Garrison Access . | . . . . . . . . . . Terminal Hacks 11 | . 1 2 2 . 3 2 1 . . Record 1 | . . . 1 . . . . . . Prototype ID Bank 1 | . . . . . . 1 . . . Open Door 3 | . . 2 . . . . 1 . . Branch Access Points 2 | . . . . . 1 1 . . . Unreport Threat 3 | . 1 . . . 2 . . . . EX-Prototype ID Bank 1 | . . . 1 . . . . . . Fabricator Hacks 2 | . . . . . . 2 . . . Build 2 | . . . . . . 2 . . . Repair Station Hacks . | . . . . . . . . . . Recycling Unit Hacks . | . . . . . . . . . . Scanalyzer 2 | . . . . . . 2 . . . Insert Component 1 | . . . . . . 1 . . . Analyze 1 | . . . . . . 1 . . . Garrison Access Hacks . | . . . . . . . . . . Unauthorized Hacks 9 | . 4 . . . 2 3 . . . Terminals 9 | . 4 . . . 2 3 . . . Track 1 | . 1 . . . . . . . . Botnet 5 | . 2 . . . 1 2 . . . Operators 3 | . 1 . . . 1 1 . . . Fabricators . | . . . . . . . . . . Repair Stations . | . . . . . . . . . . Recycling Units . | . . . . . . . . . . Scanalyzers . | . . . . . . . . . . Garrison Access . | . . . . . . . . . . Data Cores Recovered . | . . . . . . . . . . Used . | . . . . . . . . . . Hacking Detections 11 | . 3 . . . 2 6 . . . Full Trace Events 1 | . . . . . 1 . . . . Feedback Events 1 | . . . . . 1 . . . . Corruption 1 | . . . . . 1 . . . . Feedback Blocked . | . . . . . . . . . . Robot Schematics Acquired . | . . . . . . . . . . Robots Built 1 | . . . . . . 1 . . . Matter 153 | . . . . . . 153 . . . Time 40 | . . . . . . 40 . . . Total Robot Build Rating 1 | . . . . . . 1 . . . Part Schematics Acquired 1 | . . . . . . 1 . . . Parts Built 2 | . . . . . . 2 . . . Matter 234 | . . . . . . 234 . . . Time 58 | . . . . . . 58 . . . Total Part Build Rating 14 | . . . . . . 14 . . . Parts Repaired . | . . . . . . . . . . Time . | . . . . . . . . . . Parts Recycled . | . . . . . . . . . . Recycled Matter . | . . . . . . . . . . Retrieved Matter . | . . . . . . . . . . Retrieved Components . | . . . . . . . . . . Parts Scanalyzed 1 | . . . . . . 1 . . . Part Schematics Acquired 1 | . . . . . . 1 . . . Parts Damaged . | . . . . . . . . . . Bothacking | -11 -10 -10 -10 -9 -8 -7 -7 -6 -6 ------------ Run | Scr Mat Min Exi Min Mat Fac Low Zio Dee Used RIF Installer . | . . . . . . . . . . Robots Hacked . | . . . . . . . . . . Non-combat . | . . . . . . . . . . Combat . | . . . . . . . . . . Robot Hacks Applied . | . . . . . . . . . . Relay Couplers Released . | . . . . . . . . . . Robots Rewired . | . . . . . . . . . . Allies Hacked . | . . . . . . . . . . Hacks Repelled . | . . . . . . . . . . Allies | -11 -10 -10 -10 -9 -8 -7 -7 -6 -6 -------- Run | Scr Mat Min Exi Min Mat Fac Low Zio Dee Total Allies 8 | . . . . . . 1 . 7 . Largest Group 7 | . . . . . . 1 . 7 7 Highest-Rated Group 309 | . . . . . . 10 . 309 309 Highest-Rated Ally 94 | . . . . . . 10 . 94 94 Total Orders 2 | . . . . . . 1 . 1 . FOLLOW 1 | . . . . . . 1 . . . RETURN 1 | . . . . . . . . 1 . Ally Attacks 75 | . . . . . . . . . 75 Total Damage 2001 | . . . . . . . . . 2001 Kills 8 | . . . . . . . . . 8 Allies Corrupted . | . . . . . . . . . . Allies Melted . | . . . . . . . . . . Intel | -11 -10 -10 -10 -9 -8 -7 -7 -6 -6 ------- Run | Scr Mat Min Exi Min Mat Fac Low Zio Dee Robot Analysis Total . | . . . . . . . . . . Derelict Logs Recovered 4 | . . 1 . 2 . . 1 . . Drone Launches 1 | . . . . . . . . 1 . Drone Recoveries 1 | . . . . . . . . 1 . Exploration | -11 -10 -10 -10 -9 -8 -7 -7 -6 -6 ------------- Run | Scr Mat Min Exi Min Mat Fac Low Zio Dee Turns Passed 10101 | 7 336 672 432 260 1152 1547 513 3446 1736 Spaces Moved 4765 | 5 217 265 278 153 520 774 269 1611 673 Core . | . . . . . . . . . . Treads . | . . . . . . . . . . Legs 4765 | 5 217 265 278 153 520 774 269 1611 673 Wheels . | . . . . . . . . . . Hover . | . . . . . . . . . . Flight . | . . . . . . . . . . Fastest Speed 120 | 120 120 150 155 155 155 155 185 185 160 Average Speed 181 | 120 123 152 155 155 170 168 185 205 195 Slowest Speed 240 | 120 150 155 155 155 185 185 185 215 240 Overloaded Moves . | . . . . . . . . . . Propulsion Burnouts . | . . . . . . . . . . Robots Hopped . | . . . . . . . . . . Cave-ins Triggered . | . . . . . . . . . . Exploration Rate (%) 41 | 2 30 47 69 23 36 23 25 87 71 Regions Visited 9 Branch Regions 6 Pre-discovered Areas 4 | . . 1 1 . . . . 2 . Known Exits Taken 2 | . . . . . 1 1 . . . Unknown Exits Taken 7 | 1 1 1 1 1 . . 1 1 . Scrap Searched 5 | . . 1 . 2 . . . 2 . Spaces Dug 4 | . . . . . . 4 . . . Terrain Destroyed 100 | . . 4 . . 49 7 13 . 27 Melee 4 | . . . . . . 4 . . . Projectile 54 | . . 4 . . 15 3 5 . 27 AOE 42 | . . . . . 34 . 8 . . Terrain Rammed . | . . . . . . . . . . Walls Destroyed . | . . . . . . . . . . Machines Disabled . | . . . . . . . . . . Actions | -11 -10 -10 -10 -9 -8 -7 -7 -6 -6 --------- Run | Scr Mat Min Exi Min Mat Fac Low Zio Dee Total 5864 | 8 264 519 280 179 743 969 279 1745 878 Wait 663 | . 22 219 . 23 145 109 7 93 45 Move 4756 | 4 216 264 277 152 519 773 268 1610 673 Hop . | . . . . . . . . . . Pick Up 73 | . 7 12 1 2 16 11 . 15 9 Fast Attach 20 | . 1 . . . 4 8 . 1 6 Attach 18 | . . . . . 5 2 . . 11 Detach 9 | . . . . . 2 . . . 7 Swap 58 | . 3 5 . . 8 13 2 18 9 Drop 87 | 4 4 10 2 2 22 22 . 8 13 Fire 126 | . 11 9 . . 22 21 2 . 61 Melee 42 | . . . . . . 4 . . 38 Ram . | . . . . . . . . . . Kick 12 | . . . . . . 6 . . 6 Crush . | . . . . . . . . . . Escape Stasis . | . . . . . . . . . . Rewire . | . . . . . . . . . . Trap . | . . . . . . . . . . Miscellaneous . | . . . . . . . . . . Route ------- -11/Scrapyard -10/Materials -10/Mines (discovered 2 exits: [*Mat] / *Exi) -10/Exiles (discovered 2 exits: [*Min x2]) -9/Mines -8/Materials -7/Factory (discovered 2 exits: *Low x2) -7/Lower Caves -6/Zion (discovered 2 exits: [*Dee] / [*Pro]) -6/Deep Caves History --------- Turn | Location | Event 3 | -11/Scrapyard | Discovered new exit (range 3) 8 | -11/Scrapyard | Entered Materials 63 | -10/Materials | Discovered new exit (range 15) 321 | -10/Materials | Build established: Mutant 344 | -10/Materials | Entered Mines 357 | -10/Mines | Met a Derelict shopkeep closing up shop 527 | -10/Mines | Learned location of Mines (-9) 583 | -10/Mines | Met a Derelict who couldn't figure out how to use a Trap Extractor 834 | -10/Mines | Discovered new exit (range 8) 1010 | -10/Mines | Deemed a non-threat by the Exiles lab entrance 1010 | -10/Mines | Discovered new exit (range 5) 1016 | -10/Mines | Entered Exiles 1037 | -10/Exiles | Discovered new exit (range 17) 1055 | -10/Exiles | Met 8R-AWN 1082 | -10/Exiles | Met EX-HEX 1147 | -10/Exiles | Met EX-DEC 1184 | -10/Exiles | Learned location of Zion (-6) 1210 | -10/Exiles | Met EX-BIN 1235 | -10/Exiles | Aligned with FarCom system 1237 | -10/Exiles | Given EX-Vault access code 1272 | -10/Exiles | Opened EX-Vault 1293 | -10/Exiles | Found AWS/Gauss 1328 | -10/Exiles | Warned to stay clear of 0b10 Research branches 1435 | -10/Exiles | Discovered new exit (range 10) 1448 | -10/Exiles | Left Exiles lab with AWS/Gauss 1448 | -10/Exiles | Entered Mines 1535 | -9/Mines | Met a Derelict bent on vengeance 1547 | -9/Mines | Learned 2 Materials zone layouts 1553 | -9/Mines | Learned 8 Materials zone layouts 1568 | -9/Mines | Discovered new exit (range 7) 1708 | -9/Mines | Entered Materials 1708 | -8/Materials | Evolved 4 slots: Utility x2, Weapon x2 1709 | -8/Materials | Identified exit to Factory 1992 | -8/Materials | Build established: Skirmisher 2860 | -8/Materials | Entered Factory 2860 | -7/Factory | Evolved 2 slots: Utility x2 3307 | -7/Factory | Build established: Scavenger-Tank 3322 | -7/Factory | Identified exit to Lower Caves 3422 | -7/Factory | Fabricated Phase Gun (x2) 3767 | -7/Factory | Build established: Mutant 3911 | -7/Factory | Fabricated A-02 Transporter (x1) 3938 | -7/Factory | P-60 Hacker assimilated allied Transporter 4a 4407 | -7/Factory | Entered Lower Caves 4502 | -7/Lower Caves | Build established: Tank 4541 | -7/Lower Caves | Learned Factory trap positions 4914 | -7/Lower Caves | A Derelict revealed a hidden shortcut to a safe place 4920 | -7/Lower Caves | Entered Zion 5020 | -6/Zion | System corruption cleaned by Quarantine Array 5167 | -6/Zion | Build established: Mutant 5229 | -6/Zion | Visited the Megawrench Repair Shop 5348 | -6/Zion | Given A8's code to call for help 5525 | -6/Zion | Received a hallucinogenic algorithm 5622 | -6/Zion | Given the Hacking Drone Bay 5626 | -6/Zion | Found Prototype Device 5626 | -6/Zion | Identified Hacking Drone Bay 5939 | -6/Zion | Build established: Hauler-Mutant 5967 | -6/Zion | Rebuked by Imprinter 6135 | -6/Zion | Learned location of Armory (-3) 6167 | -6/Zion | Found Prototype Device 6168 | -6/Zion | Identified Mobile Refinery Mk. CCLXVII 6279 | -6/Zion | Found CR-A16's Pointy Stick 7508 | -6/Zion | Gained Derelict followers 7532 | -6/Zion | Discovered new exit (range 17) 7557 | -6/Zion | Acquired unknown access codes intercepted by a Zionite 7999 | -6/Zion | Megawrench repaired 11 parts 8199 | -6/Zion | Opened final containment barrier to the Deep Caves 8230 | -6/Zion | Discovered new exit (range 3) 8230 | -6/Zion | Saw the warning signs outside the Deep Caves entrance 8265 | -6/Zion | Enhanced Grunt warped into view, answering call for help 8268 | -6/Zion | Enhanced Grunt warped into view, answering call for help 8287 | -6/Zion | Build established: Hauler-Tank 8366 | -6/Zion | Entered Deep Caves 8366 | -6/Deep Caves | Accompanied by 7 allies 8691 | -6/Deep Caves | Z-Facility disabled 8693 | -6/Deep Caves | Attacked by Z-Imprinter 8706 | -6/Deep Caves | Allies destroyed Z-Imprinter 9321 | -6/Deep Caves | Build established: Scavenger-Gunner 9369 | -6/Deep Caves | Spotted as-21686 9421 | -6/Deep Caves | Lost 3 parts (3w) 9547 | -6/Deep Caves | Exposed GOLEM chamber 9559 | -6/Deep Caves | Found GOLEM Unit 9582 | -6/Deep Caves | Found GOLEM Unit 9702 | -6/Deep Caves | Destroyed as-21686 9716 | -6/Deep Caves | Triggered Deep Caves wall 9730 | -6/Deep Caves | Core integrity fell below 50% 9733 | -6/Deep Caves | Spotted AS-75346 9783 | -6/Deep Caves | Lost 6 parts (1n2u3w) 9792 | -6/Deep Caves | Destroyed 36 combat bots 9856 | -6/Deep Caves | Spotted AS-49944 9944 | -6/Deep Caves | Destroyed AS-75346 9960 | -6/Deep Caves | Destroyed AS-49944 10010 | -6/Deep Caves | Build established: Hauler-Golem 10027 | -6/Deep Caves | Found Prototype Device 10048 | -6/Deep Caves | Spotted as-90508 10088 | -6/Deep Caves | Spotted as-82795 10093 | -6/Deep Caves | Core integrity fell below 20% 10102 | -6/Deep Caves | Destroyed by as-82795 with Assembled Focal Cannon Last Messages --------------- 09978_ as-55595 GOLEM Unit beginning Asb. Alloy Leg integration. 09978_ as-38036 Prototype Reactor integration complete. 09979_ as-38036 GOLEM Unit beginning Asb. Alloy Leg integration. 09981_ Acquired 34 matter. 10014_ System corrupted: Matter fused (-10). 10026_ Dropped Lgt. Deuterium Engine. 10027_ Acquired Prototype Device. 10030_ System corrupted: Matter fused (-6). 10044_ Asb. Alloy Leg integration complete. 10057_ Asb. Biocell Array destroyed. 10058_ GOLEM Unit beginning Asb. Biocell Array integration. 10058_ LQ47LT2DS>X &A&XSCDFDQMMJC|OH>EZ 10074_ Asb. Biocell Array integration complete. 10079_ Lgt. Deuterium Engine destroyed. 10079_ Acquired Fission Core. 10087_ System corrupted: Energy discharge (-102). 10087_ Asb. Nanovents destroyed. 10088_ GOLEM Unit beginning Asb. Nanovents integration. 10089_ Asb. Nanovents integration complete. 10092_ as-82795: "DSI9AT1D G8OHIBQ29FWG 26R186 QD12WHW8W33 TDK1 81FTS" Map ----- +----------------------------------------------------+ | | | | | | | | | | | | | | | | | | | | | | | | | ????????????????????????????????????????????????? | | ????????????????????????????????????????????????? | | ????????????????????????????????????????????????? | | ?????????????? ?????????????????????????????????? | | ???????????? ?#??#???????????????????????????? | | ??????????? # ? ???????????????????????????? | | ??????????? # # ???????????????????????????? | | ?????????? # ?###???????????????????????? | | ?????????? # ?# #???????????????????????? | | ????????? ?# #???????????????????????? | | ?????????"" ?# #???????????????????????? | | ????????" ## #???????????????????????? | | ????????" G # #####???????????????????? | | ????????" @ #???????????????????? | | ????????# ###???????????????????? | | ?????????" ##???????????????????##? | | ?????????" ###???????????????????? # | | ?????????" g #????????????????????? | | ?????????" ! #####????????????????????? | | ????????"" #?? #????####?????????????? | | ??????### * ### ####?# ?????????????? | | ?????"" * # #?# ?????????????? | | ????? * ##???# #????????????## | | ???? l ###?# #???????????## | | ???? #?# #??????????## | | ???? % * ###?# #?????????## | | ???? ##?## #?????##### | | ???? ### ####### | | ????? ## | | ?????"" ## # | | ??????### = ## ##### ##### | | ??????# = ## # #???# ##???? | | ??????# = ##### #?### ##???? | | ??????# ! ##??# ### ##??? | | ??????# ! #??# # ##?? | | ??????#"! = !=!#??# ##? | | ???????## !!! #### = #? | | ????????" ! = ! # ## | +----------------------------------------------------+ Best States ------------- Heat Dissipation 107 Energy Generation 21 Energy Capacity 1925 Matter Stores 300 Matter Capacity 300 Sight Range 18 Terrain Scan Density 10 Armor Coverage 300 Resistance: KI 20 Power Shielding 66 Weapon Shielding 66 Evasion (%) 40 Kinecelleration 30 Defensive Hacking 10 Item Schematics ----------------- Hcp. Storage Unit | -7/Factory | Scanalyzed Robot Schematics ------------------ None Fabricated ------------ Phase Gun | x2 | -7/Factory | Preloaded A-02 Transporter | x1 | -7/Factory | Preloaded Alien Tech Used ----------------- None Achievements -------------- Boltbath Killing Spree Challenges ------------ None Game ------ Seed NuclearTacticalMantle Manual? 0 Play Time 01:08:26 Cumulative 287.9 hours Start 2020.10.22 @ 20:57:54 End 2020.10.25 @ 16:38:48 Sessions 10 Manual Loads 0 Difficulty Rogue Special Mode None Game No. 435 Rogue 434 Adventurer 0 Explorer 1 Win Type - Total 1 Types 1/0/0/0/0/0/0/0/0 Lore% 67 Gallery% 81 Achievement% 56 Wizard Run 0 Options --------- ASCII 1 Keyboard 1 Movement Vi Keybinds 0 Fullscreen 2 Font 14/Cog Map View 72x54 Tactical HUD 1 Map Filters NONE Filters LOW_CONTRAST(13,24,33) Steam 0 RUN: c069f8ba-cd3f-489c-a7d3-431b504f6b4a